[Event "Titled Tuesday Blitz March 15 Late 2022"]
[White "Rabineau, Clement"]
[Black "P., Komal Kishore"]
[WhiteFideId "628891"]
[BlackFideId "5016703"]
[WhiteElo "2237"]
[BlackElo "2126"]
[Result "1-0"]
[Round "05"]
[TimeControl "180+1"]
[Date "2022.03.16"]
[WhiteClock "0:00:07"]
[BlackClock "0:00:02"]

1. e4 {[%clk 0:03:00]}  c6 {[%clk 0:03:00]} 2. d4 {[%clk 0:02:58]}  d5 {[%clk 0:03:01]} 3. f3 {[%clk 0:02:59]}  dxe4 {[%clk 0:03:00]} 4. fxe4 {[%clk 0:03:00]}  e5 {[%clk 0:03:00]} 5. Nf3 {[%clk 0:02:59]}  exd4 {[%clk 0:02:59]} 6. Bc4 {[%clk 0:02:59]}  Bb4+ {[%clk 0:02:55]} 7. c3 {[%clk 0:02:46]}  dxc3 {[%clk 0:02:54]} 8. Bxf7+ {[%clk 0:02:46]}  Ke7 {[%clk 0:02:52]} 9. Qxd8+ {[%clk 0:02:38]}  Kxd8 {[%clk 0:02:49]} 10. Bg5+ {[%clk 0:02:03]}  Nf6 {[%clk 0:02:45]} 11. Nxc3 {[%clk 0:01:56]}  Rf8 {[%clk 0:02:32]} 12. Bb3 {[%clk 0:01:52]}  Be7 {[%clk 0:02:24]} 13. O-O-O+ {[%clk 0:01:49]}  Kc7 {[%clk 0:02:16]} 14. Bf4+ {[%clk 0:01:45]}  Kb6 {[%clk 0:02:16]} 15. Bc4 {[%clk 0:00:49]}  a5 {[%clk 0:01:54]} 16. Be3+ {[%clk 0:00:44]}  Kc7 {[%clk 0:01:49]} 17. Bf4+ {[%clk 0:00:42]}  Kb6 {[%clk 0:01:48]} 18. Na4+ {[%clk 0:00:41]}  Ka7 {[%clk 0:01:41]} 19. Be3+ {[%clk 0:00:41]}  c5 {[%clk 0:01:35]} 20. Nxc5 {[%clk 0:00:40]}  b6 {[%clk 0:01:32]} 21. Na4 {[%clk 0:00:36]}  Nbd7 {[%clk 0:01:29]} 22. e5 {[%clk 0:00:28]}  Ng4 {[%clk 0:01:27]} 23. Bd4 {[%clk 0:00:26]}  Bb7 {[%clk 0:01:11]} 24. Be6 {[%clk 0:00:21]}  Bxf3 {[%clk 0:01:05]} 25. gxf3 {[%clk 0:00:19]}  Ngxe5 {[%clk 0:01:04]} 26. Nxb6 {[%clk 0:00:15]}  Nxb6 {[%clk 0:00:52]} 27. Bxe5 {[%clk 0:00:16]}  Rxf3 {[%clk 0:00:47]} 28. Kb1 {[%clk 0:00:13]}  Bh4 {[%clk 0:00:35]} 29. Bd4 {[%clk 0:00:11]}  Re8 {[%clk 0:00:32]} 30. Bd5 {[%clk 0:00:09]}  Rf4 {[%clk 0:00:26]} 31. Bc6 {[%clk 0:00:08]}  Rc8 {[%clk 0:00:22]} 32. Bg2 {[%clk 0:00:07]}  Bf2 {[%clk 0:00:19]} 33. Rhf1 {[%clk 0:00:06]}  Rxd4 {[%clk 0:00:18]} 34. Rxd4 {[%clk 0:00:06]}  Bxd4 {[%clk 0:00:17]} 35. Rf7+ {[%clk 0:00:07]}  Ka6 {[%clk 0:00:15]} 36. Bb7+ {[%clk 0:00:07]}  Kb5 {[%clk 0:00:14]} 37. Bxc8 {[%clk 0:00:08]}  Nxc8 {[%clk 0:00:13]} 38. Rf8 {[%clk 0:00:07]}  Bf6 {[%clk 0:00:12]} 39. Rxc8 {[%clk 0:00:06]}  h6 {[%clk 0:00:12]} 40. Rb8+ {[%clk 0:00:06]}  Ka4 {[%clk 0:00:12]} 41. Rg8 {[%clk 0:00:07]}  Be5 {[%clk 0:00:11]} 42. Re8 {[%clk 0:00:07]}  Bf6 {[%clk 0:00:10]} 43. Rb8 {[%clk 0:00:07]}  h5 {[%clk 0:00:09]} 44. Rb7 {[%clk 0:00:06]}  h4 {[%clk 0:00:08]} 45. Rf7 {[%clk 0:00:06]}  Be5 {[%clk 0:00:07]} 46. h3 {[%clk 0:00:05]}  Bf6 {[%clk 0:00:07]} 47. Kc2 {[%clk 0:00:06]}  Kb4 {[%clk 0:00:06]} 48. Rb7+ {[%clk 0:00:06]}  Kc4 {[%clk 0:00:06]} 49. Rc7+ {[%clk 0:00:06]}  Kb5 {[%clk 0:00:06]} 50. Rb7+ {[%clk 0:00:06]}  Kc6 {[%clk 0:00:06]} 51. Rb3 {[%clk 0:00:07]}  Kc5 {[%clk 0:00:05]} 52. Rf3 {[%clk 0:00:07]}  a4 {[%clk 0:00:04]} 53. Rf1 {[%clk 0:00:08]}  Kc4 {[%clk 0:00:04]} 54. Rd1 {[%clk 0:00:08]}  Kb4 {[%clk 0:00:03]} 55. Rd3 {[%clk 0:00:07]}  Kb5 {[%clk 0:00:02]} 56. b3 {[%clk 0:00:07]}  axb3+ {[%clk 0:00:01]} 57. axb3 {[%clk 0:00:08]}  Kb4 {[%clk 0:00:01]} 58. Rf3 {[%clk 0:00:08]}  Be5 {[%clk 0:00:01]} 59. Rf5 {[%clk 0:00:08]}  Bf6 {[%clk 0:00:02]} 60. Rf4+ {[%clk 0:00:07]} 1-0


[Site "https://www.chess.com"]

[Event "Titled Tuesday Blitz March 15 Late 2022"]
[White "Rastbod, Ali"]
[Black "Bluebaum, Matthias"]
[WhiteFideId "12567477"]
[BlackFideId "24651516"]
[WhiteElo "2200"]
[BlackElo "2550"]
[Result "0-1"]
[Round "05"]
[TimeControl "180+1"]
[Date "2022.03.15"]
[WhiteClock "0:00:29"]
[BlackClock "0:01:05"]

1. d4 {[%clk 0:02:59]}  Nf6 {[%clk 0:02:56]} 2. c4 {[%clk 0:02:57]}  e6 {[%clk 0:02:55]} 3. Nf3 {[%clk 0:02:57]}  d5 {[%clk 0:02:55]} 4. Nc3 {[%clk 0:02:54]}  Bb4 {[%clk 0:02:55]} 5. Qa4+ {[%clk 0:02:52]}  Nc6 {[%clk 0:02:55]} 6. cxd5 {[%clk 0:02:53]}  exd5 {[%clk 0:02:56]} 7. Bg5 {[%clk 0:02:53]}  h6 {[%clk 0:02:56]} 8. Bxf6 {[%clk 0:02:53]}  Qxf6 {[%clk 0:02:57]} 9. e3 {[%clk 0:02:53]}  O-O {[%clk 0:02:58]} 10. Bd3 {[%clk 0:02:45]}  Be6 {[%clk 0:02:57]} 11. O-O {[%clk 0:02:43]}  a6 {[%clk 0:02:57]} 12. Qc2 {[%clk 0:02:43]}  Bd6 {[%clk 0:02:56]} 13. a3 {[%clk 0:02:41]}  Rae8 {[%clk 0:02:55]} 14. b4 {[%clk 0:02:36]}  g5 {[%clk 0:02:31]} 15. Nd2 {[%clk 0:02:11]}  g4 {[%clk 0:02:20]} 16. g3 {[%clk 0:02:01]}  Ne7 {[%clk 0:02:15]} 17. f3 {[%clk 0:01:57]}  gxf3 {[%clk 0:02:04]} 18. Nxf3 {[%clk 0:01:58]}  Qg7 {[%clk 0:01:47]} 19. e4 {[%clk 0:01:50]}  dxe4 {[%clk 0:01:36]} 20. Bxe4 {[%clk 0:01:51]}  Bh3 {[%clk 0:01:33]} 21. Rf2 {[%clk 0:01:38]}  Nc6 {[%clk 0:01:33]} 22. Rd1 {[%clk 0:01:18]}  Kh8 {[%clk 0:01:30]} 23. Qd3 {[%clk 0:01:16]}  Bxg3 {[%clk 0:01:22]} 24. Rg2 {[%clk 0:00:37]}  Bf2+ {[%clk 0:01:12]} 25. Kxf2 {[%clk 0:00:28]}  Qxg2+ {[%clk 0:01:10]} 26. Ke3 {[%clk 0:00:29]}  f5 {[%clk 0:01:06]} 27. Rg1 {[%clk 0:00:29]}  f4# {[%clk 0:01:05]} 0-1


[Site "https://www.chess.com"]

[Event "Titled Tuesday Blitz March 15 Late 2022"]
[White "Sailer, Mike"]
[Black "Kostiukov, Alexandr"]
[WhiteFideId "2012901"]
[BlackFideId "14108100"]
[WhiteElo "2109"]
[BlackElo "2202"]
[Result "1-0"]
[Round "05"]
[TimeControl "180+1"]
[Date "2022.03.16"]
[WhiteClock "0:00:04"]
[BlackClock "0:00:17"]

1. d4 {[%clk 0:03:00]}  g6 {[%clk 0:02:59]} 2. Nf3 {[%clk 0:02:56]}  Bg7 {[%clk 0:02:59]} 3. Bf4 {[%clk 0:02:55]}  d6 {[%clk 0:02:59]} 4. e3 {[%clk 0:02:55]}  Nf6 {[%clk 0:02:59]} 5. c4 {[%clk 0:02:55]}  O-O {[%clk 0:02:59]} 6. Nc3 {[%clk 0:02:56]}  a6 {[%clk 0:02:59]} 7. Be2 {[%clk 0:02:56]}  Nbd7 {[%clk 0:02:58]} 8. O-O {[%clk 0:02:56]}  Re8 {[%clk 0:02:58]} 9. b4 {[%clk 0:02:54]}  e5 {[%clk 0:02:57]} 10. Bg3 {[%clk 0:02:55]}  e4 {[%clk 0:02:57]} 11. Nd2 {[%clk 0:02:55]}  Qe7 {[%clk 0:02:58]} 12. Qc2 {[%clk 0:02:55]}  a5 {[%clk 0:02:50]} 13. b5 {[%clk 0:02:43]}  c5 {[%clk 0:02:49]} 14. dxc5 {[%clk 0:02:39]}  dxc5 {[%clk 0:02:43]} 15. Nd5 {[%clk 0:02:35]}  Nxd5 {[%clk 0:02:42]} 16. cxd5 {[%clk 0:02:34]}  Bxa1 {[%clk 0:02:41]} 17. Rxa1 {[%clk 0:02:34]}  b6 {[%clk 0:02:39]} 18. Nc4 {[%clk 0:02:17]}  Bb7 {[%clk 0:02:21]} 19. Rd1 {[%clk 0:02:08]}  Nf6 {[%clk 0:02:15]} 20. Nxb6 {[%clk 0:01:58]}  Rad8 {[%clk 0:02:11]} 21. d6 {[%clk 0:01:51]}  Qe6 {[%clk 0:02:00]} 22. Qxc5 {[%clk 0:01:42]}  Qxa2 {[%clk 0:01:48]} 23. d7 {[%clk 0:01:15]}  Qxe2 {[%clk 0:01:40]} 24. dxe8=Q+ {[%clk 0:01:15]}  Rxe8 {[%clk 0:01:40]} 25. Rc1 {[%clk 0:00:47]}  Rd8 {[%clk 0:01:20]} 26. h3 {[%clk 0:00:35]}  Nh5 {[%clk 0:00:59]} 27. Be5 {[%clk 0:00:20]}  Ng7 {[%clk 0:00:26]} 28. Kh2 {[%clk 0:00:09]}  Ne6 {[%clk 0:00:25]} 29. Qe7 {[%clk 0:00:07]}  Qd2 {[%clk 0:00:20]} 30. Qf6 {[%clk 0:00:06]}  Kf8 {[%clk 0:00:18]} 31. Qh8+ {[%clk 0:00:02]}  Ke7 {[%clk 0:00:18]} 32. Bf6+ {[%clk 0:00:02]}  Kd6 {[%clk 0:00:17]} 33. Nc4+ {[%clk 0:00:02]}  Kc5 {[%clk 0:00:13]} 34. Bxd8 {[%clk 0:00:02]}  Kxb5 {[%clk 0:00:14]} 35. Nxd2 {[%clk 0:00:01]}  Ka6 {[%clk 0:00:14]} 36. Rb1 {[%clk 0:00:02]}  a4 {[%clk 0:00:15]} 37. Rxb7 {[%clk 0:00:03]}  Kxb7 {[%clk 0:00:15]} 38. Bf6 {[%clk 0:00:03]}  Kc6 {[%clk 0:00:16]} 39. Qg7 {[%clk 0:00:04]}  Kd5 {[%clk 0:00:17]} 40. Qxf7 {[%clk 0:00:04]} 1-0


[Site "https://www.chess.com"]

[Event "Titled Tuesday Blitz March 15 Late 2022"]
[White "Senft, Sean"]
[Black "Karas, Marek"]
[WhiteFideId "2044960"]
[BlackFideId "14928558"]
[WhiteElo "1881"]
[BlackElo "2271"]
[Result "1-0"]
[Round "05"]
[TimeControl "180+1"]
[Date "2022.03.16"]
[WhiteClock "0:02:01"]
[BlackClock "0:00:01"]

1. d4 {[%clk 0:02:54]}  e5 {[%clk 0:02:59]} 2. c4 {[%clk 0:02:54]}  exd4 {[%clk 0:02:58]} 3. Qxd4 {[%clk 0:02:55]}  Nc6 {[%clk 0:02:58]} 4. Qd1 {[%clk 0:02:56]}  Bb4+ {[%clk 0:02:58]} 5. Bd2 {[%clk 0:02:56]}  Qe7 {[%clk 0:02:58]} 6. g3 {[%clk 0:02:56]}  Nf6 {[%clk 0:02:57]} 7. Bg2 {[%clk 0:02:56]}  O-O {[%clk 0:02:56]} 8. Nf3 {[%clk 0:02:56]}  a5 {[%clk 0:02:55]} 9. O-O {[%clk 0:02:57]}  Ne4 {[%clk 0:02:49]} 10. Nc3 {[%clk 0:02:57]}  Nxc3 {[%clk 0:02:45]} 11. Bxc3 {[%clk 0:02:57]}  Bxc3 {[%clk 0:02:45]} 12. bxc3 {[%clk 0:02:57]}  d6 {[%clk 0:02:45]} 13. Nd4 {[%clk 0:02:57]}  Bd7 {[%clk 0:02:41]} 14. Nxc6 {[%clk 0:02:56]}  Bxc6 {[%clk 0:02:40]} 15. Bxc6 {[%clk 0:02:57]}  bxc6 {[%clk 0:02:41]} 16. Rb1 {[%clk 0:02:57]}  Rab8 {[%clk 0:02:40]} 17. e3 {[%clk 0:02:56]}  Qe5 {[%clk 0:02:39]} 18. Qd4 {[%clk 0:02:54]}  f6 {[%clk 0:02:38]} 19. Qa7 {[%clk 0:02:50]}  Rxb1 {[%clk 0:02:31]} 20. Rxb1 {[%clk 0:02:51]}  Qxc3 {[%clk 0:02:08]} 21. Qxc7 {[%clk 0:02:48]}  Qxc4 {[%clk 0:02:02]} 22. Rb7 {[%clk 0:02:37]}  Qf7 {[%clk 0:02:00]} 23. Qxc6 {[%clk 0:02:37]}  Qxa2 {[%clk 0:01:57]} 24. Qxd6 {[%clk 0:02:37]}  h6 {[%clk 0:01:39]} 25. Ra7 {[%clk 0:02:36]}  Rf7 {[%clk 0:01:25]} 26. Ra8+ {[%clk 0:02:33]}  Kh7 {[%clk 0:01:22]} 27. Qd3+ {[%clk 0:02:34]}  f5 {[%clk 0:01:19]} 28. Ra6 {[%clk 0:02:33]}  a4 {[%clk 0:01:03]} 29. Kg2 {[%clk 0:02:26]}  Qa1 {[%clk 0:00:36]} 30. Qd5 {[%clk 0:02:19]}  Rf8 {[%clk 0:00:32]} 31. Qa5 {[%clk 0:02:18]}  Qb2 {[%clk 0:00:23]} 32. Qxa4 {[%clk 0:02:15]}  Qb7+ {[%clk 0:00:22]} 33. Kh3 {[%clk 0:02:16]}  Qf3 {[%clk 0:00:20]} 34. Qf4 {[%clk 0:02:13]}  Qh5+ {[%clk 0:00:19]} 35. Kg2 {[%clk 0:02:13]}  Rf7 {[%clk 0:00:17]} 36. h3 {[%clk 0:02:13]}  Qd1 {[%clk 0:00:16]} 37. Ra5 {[%clk 0:02:12]}  Qd3 {[%clk 0:00:14]} 38. g4 {[%clk 0:02:10]}  g6 {[%clk 0:00:09]} 39. Re5 {[%clk 0:02:08]}  Qc2 {[%clk 0:00:06]} 40. h4 {[%clk 0:02:07]}  Qc6+ {[%clk 0:00:06]} 41. Kg3 {[%clk 0:02:07]}  Qd7 {[%clk 0:00:05]} 42. g5 {[%clk 0:02:06]}  h5 {[%clk 0:00:04]} 43. Qd4 {[%clk 0:02:06]}  Qb7 {[%clk 0:00:04]} 44. Re8 {[%clk 0:02:05]}  Rg7 {[%clk 0:00:03]} 45. Qe5 {[%clk 0:02:01]}  Qh1 {[%clk 0:00:02]} 46. Re7 {[%clk 0:02:00]}  Qg1+ {[%clk 0:00:02]} 47. Kf3 {[%clk 0:02:01]}  Qh1+ {[%clk 0:00:02]} 48. Ke2 {[%clk 0:02:01]}  Rxe7 {[%clk 0:00:02]} 49. Qxe7+ {[%clk 0:02:01]}  Kg8 {[%clk 0:00:02]} 50. Qf6 {[%clk 0:01:59]}  Kh7 {[%clk 0:00:01]} 51. Qf7+ {[%clk 0:02:00]}  Kh8 {[%clk 0:00:01]} 52. Qxg6 {[%clk 0:02:00]}  Qe4 {[%clk 0:00:01]} 53. Qxh5+ {[%clk 0:02:00]}  Kg7 {[%clk 0:00:01]} 54. Qh6+ {[%clk 0:02:01]}  Kf7 {[%clk 0:00:01]} 55. Qf6+ {[%clk 0:02:00]}  Kg8 {[%clk 0:00:01]} 56. Qd8+ {[%clk 0:02:00]}  Kg7 {[%clk 0:00:01]} 57. Qd4+ {[%clk 0:02:01]} 1-0


[Site "https://www.chess.com"]

[Event "Titled Tuesday Blitz March 15 Late 2022"]
[White "Solon, Nathan"]
[Black "Suleymanli, Aydin"]
[WhiteFideId "2017229"]
[BlackFideId "13413937"]
[WhiteElo "2577"]
[BlackElo "2481"]
[Result "0-1"]
[Round "05"]
[TimeControl "180+1"]
[Date "2022.03.15"]
[WhiteClock "0:01:06"]
[BlackClock "0:00:06"]

1. d4 {[%clk 0:03:00]}  Nf6 {[%clk 0:01:37]} 2. Bg5 {[%clk 0:02:58]}  e6 {[%clk 0:01:37]} 3. e4 {[%clk 0:02:58]}  h6 {[%clk 0:01:36]} 4. Bxf6 {[%clk 0:02:58]}  Qxf6 {[%clk 0:01:37]} 5. c3 {[%clk 0:02:59]}  d6 {[%clk 0:01:37]} 6. Bd3 {[%clk 0:02:59]}  Nd7 {[%clk 0:01:37]} 7. Ne2 {[%clk 0:02:59]}  g5 {[%clk 0:01:38]} 8. O-O {[%clk 0:02:57]}  e5 {[%clk 0:01:38]} 9. Nd2 {[%clk 0:02:55]}  Bg7 {[%clk 0:01:37]} 10. Nc4 {[%clk 0:02:55]}  O-O {[%clk 0:01:34]} 11. Ne3 {[%clk 0:02:54]}  Nb6 {[%clk 0:01:28]} 12. d5 {[%clk 0:02:50]}  c6 {[%clk 0:01:26]} 13. c4 {[%clk 0:02:49]}  cxd5 {[%clk 0:01:18]} 14. cxd5 {[%clk 0:02:49]}  Bd7 {[%clk 0:01:18]} 15. Ng3 {[%clk 0:02:48]}  Rfc8 {[%clk 0:01:11]} 16. a4 {[%clk 0:02:43]}  Rc7 {[%clk 0:00:58]} 17. a5 {[%clk 0:02:38]}  Nc8 {[%clk 0:00:49]} 18. Be2 {[%clk 0:02:23]}  b6 {[%clk 0:00:30]} 19. axb6 {[%clk 0:02:16]}  Nxb6 {[%clk 0:00:31]} 20. Bg4 {[%clk 0:02:13]}  Bb5 {[%clk 0:00:30]} 21. Be2 {[%clk 0:02:07]}  Bxe2 {[%clk 0:00:19]} 22. Qxe2 {[%clk 0:02:08]}  Rac8 {[%clk 0:00:18]} 23. Nef5 {[%clk 0:02:02]}  Bf8 {[%clk 0:00:18]} 24. h4 {[%clk 0:01:57]}  gxh4 {[%clk 0:00:11]} 25. Nh5 {[%clk 0:01:53]}  Qg6 {[%clk 0:00:10]} 26. Nxh4 {[%clk 0:01:49]}  Qg5 {[%clk 0:00:10]} 27. Nf5 {[%clk 0:01:47]}  Rc2 {[%clk 0:00:10]} 28. Qf3 {[%clk 0:01:48]}  Nc4 {[%clk 0:00:10]} 29. Rxa7 {[%clk 0:01:39]}  Nd2 {[%clk 0:00:07]} 30. Nxh6+ {[%clk 0:01:33]}  Qxh6 {[%clk 0:00:07]} 31. Qxf7+ {[%clk 0:01:32]}  Kh8 {[%clk 0:00:08]} 32. Nf6 {[%clk 0:01:27]}  Bg7 {[%clk 0:00:08]} 33. Ne8 {[%clk 0:01:21]}  Rxe8 {[%clk 0:00:04]} 34. Qxe8+ {[%clk 0:01:21]}  Kh7 {[%clk 0:00:05]} 35. Re1 {[%clk 0:01:12]}  Qg5 {[%clk 0:00:05]} 36. Re3 {[%clk 0:01:06]}  Rc1+ {[%clk 0:00:05]} 37. Kh2 {[%clk 0:01:06]}  Nf1+ {[%clk 0:00:06]} 38. Kh3 {[%clk 0:01:06]}  Nxe3 {[%clk 0:00:06]} 0-1


[Site "https://www.chess.com"]

[Event "Titled Tuesday Blitz March 15 Late 2022"]
[White "Srihari L R"]
[Black "Rozman, Levy"]
[WhiteFideId "46617116"]
[BlackFideId "2039877"]
[WhiteElo "2121"]
[BlackElo "2376"]
[Result "1-0"]
[Round "05"]
[TimeControl "180+1"]
[Date "2022.03.15"]
[WhiteClock "0:02:25"]
[BlackClock "0:01:55"]

1. c4 {[%clk 0:03:00]}  g6 {[%clk 0:02:45]} 2. Nc3 {[%clk 0:02:55]}  Bg7 {[%clk 0:02:45]} 3. g3 {[%clk 0:02:54]}  d6 {[%clk 0:02:45]} 4. Bg2 {[%clk 0:02:54]}  Nc6 {[%clk 0:02:46]} 5. e3 {[%clk 0:02:54]}  e5 {[%clk 0:02:36]} 6. Nge2 {[%clk 0:02:53]}  Bd7 {[%clk 0:02:37]} 7. d4 {[%clk 0:02:50]}  Qc8 {[%clk 0:02:33]} 8. Nd5 {[%clk 0:02:40]}  Nge7 {[%clk 0:02:27]} 9. dxe5 {[%clk 0:02:35]}  dxe5 {[%clk 0:02:24]} 10. b3 {[%clk 0:02:34]}  O-O {[%clk 0:02:18]} 11. Ba3 {[%clk 0:02:33]}  Re8 {[%clk 0:02:15]} 12. O-O {[%clk 0:02:33]}  Nf5 {[%clk 0:02:11]} 13. Rc1 {[%clk 0:02:29]}  a5 {[%clk 0:02:06]} 14. Nec3 {[%clk 0:02:28]}  Be6 {[%clk 0:01:55]} 15. Nb5 {[%clk 0:02:25]} 1-0


[Site "https://www.chess.com"]

[Event "Titled Tuesday Blitz March 15 Late 2022"]
[White "Svicevic, Rastko"]
[Black "Vifleemskaia, Svetlana"]
[WhiteFideId "916315"]
[BlackFideId "4129490"]
[WhiteElo "2132"]
[BlackElo "1901"]
[Result "1-0"]
[Round "05"]
[TimeControl "180+1"]
[Date "2022.03.16"]
[WhiteClock "0:00:11"]
[BlackClock "0:00:01"]

1. e4 {[%clk 0:02:57]}  e5 {[%clk 0:02:58]} 2. Nf3 {[%clk 0:02:57]}  Nc6 {[%clk 0:02:57]} 3. Nc3 {[%clk 0:02:57]}  Nf6 {[%clk 0:02:56]} 4. d4 {[%clk 0:02:58]}  exd4 {[%clk 0:02:55]} 5. Nxd4 {[%clk 0:02:59]}  Bb4 {[%clk 0:02:55]} 6. Nxc6 {[%clk 0:02:50]}  bxc6 {[%clk 0:02:53]} 7. Bd3 {[%clk 0:02:44]}  d5 {[%clk 0:02:52]} 8. Bd2 {[%clk 0:02:40]}  O-O {[%clk 0:02:46]} 9. O-O {[%clk 0:02:36]}  Bxc3 {[%clk 0:02:44]} 10. Bxc3 {[%clk 0:02:34]}  Nxe4 {[%clk 0:02:44]} 11. Bxe4 {[%clk 0:02:32]}  dxe4 {[%clk 0:02:44]} 12. Qe2 {[%clk 0:02:32]}  Re8 {[%clk 0:02:35]} 13. Rfd1 {[%clk 0:02:26]}  Qg5 {[%clk 0:02:32]} 14. Kh1 {[%clk 0:02:16]}  Bg4 {[%clk 0:02:16]} 15. Qd2 {[%clk 0:02:16]}  Qg6 {[%clk 0:01:54]} 16. Re1 {[%clk 0:02:10]}  h5 {[%clk 0:01:51]} 17. Qf4 {[%clk 0:02:09]}  Rac8 {[%clk 0:01:32]} 18. Re3 {[%clk 0:01:58]}  f6 {[%clk 0:01:08]} 19. Rae1 {[%clk 0:01:51]}  Kf7 {[%clk 0:00:42]} 20. f3 {[%clk 0:01:34]}  exf3 {[%clk 0:00:32]} 21. Rxe8 {[%clk 0:01:33]}  fxg2+ {[%clk 0:00:30]} 22. Kg1 {[%clk 0:01:32]}  Rxe8 {[%clk 0:00:28]} 23. Qxc7+ {[%clk 0:01:19]}  Kg8 {[%clk 0:00:27]} 24. Qxc6 {[%clk 0:01:00]}  Rxe1+ {[%clk 0:00:25]} 25. Bxe1 {[%clk 0:00:58]}  Be2 {[%clk 0:00:15]} 26. Qe6+ {[%clk 0:00:55]}  Qf7 {[%clk 0:00:11]} 27. Qxe2 {[%clk 0:00:56]}  Qxa2 {[%clk 0:00:10]} 28. Qe8+ {[%clk 0:00:54]}  Kh7 {[%clk 0:00:08]} 29. Qxh5+ {[%clk 0:00:55]}  Kg8 {[%clk 0:00:08]} 30. Qe8+ {[%clk 0:00:53]}  Kh7 {[%clk 0:00:07]} 31. Qe4+ {[%clk 0:00:53]}  Kg8 {[%clk 0:00:07]} 32. Bc3 {[%clk 0:00:43]}  Qb1+ {[%clk 0:00:04]} 33. Kxg2 {[%clk 0:00:42]}  Qd1 {[%clk 0:00:03]} 34. Qa8+ {[%clk 0:00:36]}  Kh7 {[%clk 0:00:03]} 35. Qe4+ {[%clk 0:00:37]}  Kg8 {[%clk 0:00:02]} 36. Qd3 {[%clk 0:00:20]}  Qg4+ {[%clk 0:00:02]} 37. Qg3 {[%clk 0:00:19]}  Qe6 {[%clk 0:00:02]} 38. Qb8+ {[%clk 0:00:12]}  Kh7 {[%clk 0:00:02]} 39. Qxa7 {[%clk 0:00:13]}  Qe2+ {[%clk 0:00:01]} 40. Qf2 {[%clk 0:00:12]}  Qe4+ {[%clk 0:00:02]} 41. Kf1 {[%clk 0:00:12]}  Qc4+ {[%clk 0:00:01]} 42. Qe2 {[%clk 0:00:11]} 1-0


[Site "https://www.chess.com"]

[Event "Titled Tuesday Blitz March 15 Late 2022"]
[White "Taichman, Ori"]
[Black "Kovanova, Baira"]
[WhiteFideId "2804069"]
[BlackFideId "4164083"]
[WhiteElo "2227"]
[BlackElo "2190"]
[Result "1-0"]
[Round "05"]
[TimeControl "180+1"]
[Date "2022.03.16"]
[WhiteClock "0:00:05"]
[BlackClock "0:00:15"]

1. e4 {[%clk 0:02:59]}  e5 {[%clk 0:02:36]} 2. d4 {[%clk 0:02:51]}  exd4 {[%clk 0:02:36]} 3. Qxd4 {[%clk 0:02:52]}  Nc6 {[%clk 0:02:36]} 4. Qe3 {[%clk 0:02:53]}  g6 {[%clk 0:02:31]} 5. Nc3 {[%clk 0:02:53]}  Bg7 {[%clk 0:02:31]} 6. Bd2 {[%clk 0:02:53]}  Nge7 {[%clk 0:02:31]} 7. O-O-O {[%clk 0:02:53]}  O-O {[%clk 0:02:32]} 8. Bc4 {[%clk 0:02:53]}  d6 {[%clk 0:02:31]} 9. h4 {[%clk 0:02:53]}  Be6 {[%clk 0:02:24]} 10. Bxe6 {[%clk 0:02:53]}  fxe6 {[%clk 0:02:24]} 11. h5 {[%clk 0:02:54]}  Qe8 {[%clk 0:02:22]} 12. Qh3 {[%clk 0:02:49]}  Qf7 {[%clk 0:02:09]} 13. Nf3 {[%clk 0:02:46]}  h6 {[%clk 0:01:47]} 14. hxg6 {[%clk 0:02:44]}  Qxg6 {[%clk 0:01:47]} 15. g4 {[%clk 0:02:14]}  Rf7 {[%clk 0:01:39]} 16. g5 {[%clk 0:02:06]}  Raf8 {[%clk 0:01:02]} 17. Nh4 {[%clk 0:01:23]}  Qh5 {[%clk 0:01:01]} 18. gxh6 {[%clk 0:01:10]}  Bxh6 {[%clk 0:00:55]} 19. Rdg1+ {[%clk 0:01:09]}  Kh7 {[%clk 0:00:52]} 20. Nf3 {[%clk 0:00:31]}  Qxh3 {[%clk 0:00:38]} 21. Rxh3 {[%clk 0:00:19]}  Rf6 {[%clk 0:00:37]} 22. Bxh6 {[%clk 0:00:13]}  Rxh6 {[%clk 0:00:37]} 23. Ng5+ {[%clk 0:00:13]}  Kg6 {[%clk 0:00:31]} 24. Nxe6+ {[%clk 0:00:13]}  Kf7 {[%clk 0:00:32]} 25. Rxh6 {[%clk 0:00:13]}  Rg8 {[%clk 0:00:25]} 26. Rxg8 {[%clk 0:00:11]}  Nxg8 {[%clk 0:00:25]} 27. Ng5+ {[%clk 0:00:12]}  Kg7 {[%clk 0:00:25]} 28. Rh1 {[%clk 0:00:11]}  Nd4 {[%clk 0:00:25]} 29. Nd5 {[%clk 0:00:11]}  c6 {[%clk 0:00:25]} 30. Nf4 {[%clk 0:00:10]}  Kf6 {[%clk 0:00:25]} 31. Nh7+ {[%clk 0:00:09]}  Kg7 {[%clk 0:00:24]} 32. c3 {[%clk 0:00:07]}  Nf3 {[%clk 0:00:23]} 33. Kc2 {[%clk 0:00:04]}  Ne7 {[%clk 0:00:22]} 34. Ne6+ {[%clk 0:00:04]}  Kf7 {[%clk 0:00:21]} 35. Nhg5+ {[%clk 0:00:04]}  Nxg5 {[%clk 0:00:21]} 36. Nxg5+ {[%clk 0:00:05]}  Kg6 {[%clk 0:00:21]} 37. f4 {[%clk 0:00:06]}  d5 {[%clk 0:00:21]} 38. exd5 {[%clk 0:00:06]}  Nxd5 {[%clk 0:00:21]} 39. Rf1 {[%clk 0:00:06]}  Kf5 {[%clk 0:00:20]} 40. Rf2 {[%clk 0:00:06]}  b5 {[%clk 0:00:20]} 41. Nf3 {[%clk 0:00:05]}  Kxf4 {[%clk 0:00:19]} 42. Nd4+ {[%clk 0:00:05]}  Kg3 {[%clk 0:00:19]} 43. Rf3+ {[%clk 0:00:05]}  Kg4 {[%clk 0:00:18]} 44. Rf8 {[%clk 0:00:06]}  Ne7 {[%clk 0:00:16]} 45. Rf7 {[%clk 0:00:06]}  Nd5 {[%clk 0:00:16]} 46. Nxc6 {[%clk 0:00:06]}  a6 {[%clk 0:00:15]} 47. Nb4 {[%clk 0:00:05]}  Ne3+ {[%clk 0:00:15]} 48. Kb3 {[%clk 0:00:05]}  Nc4 {[%clk 0:00:15]} 49. Nxa6 {[%clk 0:00:05]}  Na5+ {[%clk 0:00:15]} 50. Kb4 {[%clk 0:00:05]} 1-0


[Site "https://www.chess.com"]

[Event "Titled Tuesday Blitz March 15 Late 2022"]
[White "Vlassov, Nikolai"]
[Black "Cervantes Landeiro, Thalia"]
[WhiteFideId "4103360"]
[BlackFideId "3520498"]
[WhiteElo "2407"]
[BlackElo "2021"]
[Result "1-0"]
[Round "05"]
[TimeControl "180+1"]
[Date "2022.03.16"]
[WhiteClock "0:02:18"]
[BlackClock "0:00:27"]

1. e4 {[%clk 0:03:00]}  c5 {[%clk 0:02:54]} 2. c3 {[%clk 0:03:00]}  Nf6 {[%clk 0:02:54]} 3. e5 {[%clk 0:03:01]}  Nd5 {[%clk 0:02:54]} 4. d4 {[%clk 0:03:02]}  cxd4 {[%clk 0:02:53]} 5. cxd4 {[%clk 0:03:02]}  d6 {[%clk 0:02:52]} 6. Bc4 {[%clk 0:03:03]}  Nb6 {[%clk 0:02:50]} 7. Bb3 {[%clk 0:03:03]}  e6 {[%clk 0:02:41]} 8. Qe2 {[%clk 0:03:01]}  Nc6 {[%clk 0:02:39]} 9. Nf3 {[%clk 0:03:01]}  dxe5 {[%clk 0:02:09]} 10. dxe5 {[%clk 0:03:01]}  Bb4+ {[%clk 0:02:08]} 11. Nc3 {[%clk 0:03:01]}  O-O {[%clk 0:02:05]} 12. O-O {[%clk 0:02:53]}  Be7 {[%clk 0:01:41]} 13. Rd1 {[%clk 0:02:51]}  Qc7 {[%clk 0:01:37]} 14. Bf4 {[%clk 0:02:51]}  a6 {[%clk 0:01:36]} 15. Rac1 {[%clk 0:02:51]}  Bd7 {[%clk 0:01:31]} 16. Ne4 {[%clk 0:02:51]}  Rad8 {[%clk 0:01:28]} 17. h4 {[%clk 0:02:45]}  Bc8 {[%clk 0:01:19]} 18. Nd6 {[%clk 0:02:44]}  Qb8 {[%clk 0:01:14]} 19. Ng5 {[%clk 0:02:37]}  h6 {[%clk 0:01:04]} 20. Nge4 {[%clk 0:02:27]}  Na5 {[%clk 0:00:56]} 21. Bc2 {[%clk 0:02:26]}  Nd5 {[%clk 0:00:56]} 22. Bxh6 {[%clk 0:02:22]}  gxh6 {[%clk 0:00:51]} 23. Qg4+ {[%clk 0:02:20]}  Kh8 {[%clk 0:00:48]} 24. Qh5 {[%clk 0:02:21]}  Kg7 {[%clk 0:00:38]} 25. Rd3 {[%clk 0:02:20]}  Rh8 {[%clk 0:00:27]} 26. Qxf7# {[%clk 0:02:18]} 1-0


[Site "https://www.chess.com"]